Cogmind - Beta 15 @@@ ROGUE MODE // 2025.08.23 @ 23:59:16 Player: shapeshifter Result: Destroyed by H-77 Assassin with High-powered Shotgun Performance ------------- Evolutions (6) 3000 Regions Visited (13) 2600 Robots Destroyed (116) 580 Value Destroyed (4914) 4914 Prototype IDs (8) 160 Alien Tech Used (0) 0 Bonus (1736) 1736 TOTAL SCORE: 12990 Bonus ------- High Alert Combat Kills 53 Follower Combat Kills 283 Entered Garrisons 400 Used RIF Installer 500 Entered DSFs 500 Cogmind --------- Core Integrity 0/1150 Matter 42/300 Energy 99/100 System Corruption 13% Temperature Cool (9) Movement Core (50) Location -4/Garrison Parts ------- > --- POWER (3) -------- (None) > --- PROPULSION (6) --- (None) > --- UTILITY (7) ------ Advanced Salvage Targeting Computer Relay Coupler [Swarmer] (24) > --- WEAPON (3) ------- Lance > --- INVENTORY (5) ---- Energy Well (350) Plasma Cutter Peak State ------------ > --- POWER ------------ Backup Power III > --- PROPULSION ------- Armored Medium Treads Armored Medium Treads Armored Medium Treads Advanced Heavy Siege Treads > --- UTILITY ---------- Advanced Cooling System High-capacity Storage Unit Energy Well Improved Signal Interpreter Light Regenerative Plating Advanced Shield Generator Relay Coupler [Sentry] > --- WEAPON ----------- Backup Laser III Enhanced Gauss Cannon Lance > --- INVENTORY -------- Armored Medium Treads Heavy Treads Advanced Heat Sink Large Matter Pod Seismic Detector Advanced Salvage Targeting Computer Relay Coupler [NC] Relay Coupler [Swarmer] Relay Coupler [Hunter] Gamma Rifle Backup Laser III Heavy Laser Hypervelocity Gauss Cannon Hypervelocity Gauss Cannon Proton Missile Launcher Remote Datajack Improved Remote Datajack Plasma Cutter [Rating: 93] Favorites ----------- Power Improved Ion Engine Engine Improved Ion Engine Power Core Backup Power VII Reactor Light Antimatter Reactor Propulsion Armored Medium Treads Treads Armored Medium Treads Leg Improved Titanium Leg Wheel Wheel Hover Unit Backup Propulsion VII Utility Light Regenerative Plating Device Force Field Storage High-capacity Storage Unit Processor Improved Signal Interpreter Hackware Relay Coupler [Grunt] Protection Light Regenerative Plating Weapon Heavy Assault Rifle Energy Gun Backup Laser III Energy Cannon Light EM Pulse Cannon Ballistic Gun Heavy Assault Rifle Ballistic Cannon Gauss Cannon Launcher Heavy Rocket Launcher Special Weapon Remote Datajack Slashing Weapon Molecular Scythe Piercing Weapon Lance Special Melee Weapon Datajack Build | -11 -10 -9 -9 -9 -9 -7 -6 -6 -6 -6 -5 -4 -4 ------- Run | Yrd Mat Mat Sto Gar Rec Fac Fac Was Fac DSF Fac Fac Gar Slots Evolved 12 | . . 2 . . . 4 2 . . . 2 2 . Power 2 | . . . . . . 1 . . . . . 1 . Propulsion 4 | . . 2 . . . . . . . . 1 1 . Utility 5 | . . . . . . 2 2 . . . 1 . . Weapon 1 | . . . . . . 1 . . . . . . . Parts Attached 111 | 7 3 11 14 3 2 16 13 1 . 7 15 17 2 Power 13 | 1 . 3 1 . . 2 1 . . . . 5 . Engine 10 | 1 . 3 1 . . 2 1 . . . . 2 . Core . | . . . . . . . . . . . . . . Reactor 3 | . . . . . . . . . . . . 3 . Propulsion 33 | 2 2 3 4 . 2 6 2 . . 4 4 3 1 Treads 23 | 2 . 2 4 . 2 2 . . . 3 4 3 1 Leg 4 | . . . . . . 2 1 . . 1 . . . Wheel 5 | . 2 1 . . . 2 . . . . . . . Hover 1 | . . . . . . . 1 . . . . . . Flight . | . . . . . . . . . . . . . . Utility 33 | 2 . 3 3 . . 5 4 . . 3 6 7 . Device 10 | 1 . . 1 . . . 2 . . . 2 4 . Storage 5 | 1 . 1 . . . 2 1 . . . . . . Processor 4 | . . . . . . 1 . . . . 2 1 . Hackware 8 | . . . . . . 1 . . . 3 2 2 . Protection 6 | . . 2 2 . . 1 1 . . . . . . Artifact . | . . . . . . . . . . . . . . Weapon 32 | 2 1 2 6 3 . 3 6 1 . . 5 2 1 Energy Gun 5 | . 1 . 1 . . . 2 . . . 1 . . Energy Cannon 4 | . . . 1 2 . . 1 . . . . . . Ballistic Gun 11 | 2 . 2 3 . . . 2 . . . . 2 . Ballistic Cannon 2 | . . . . . . 1 . . . . 1 . . Launcher 3 | . . . . 1 . . 1 . . . 1 . . Special Weapon 3 | . . . 1 . . . . . . . 1 . 1 Impact Weapon . | . . . . . . . . . . . . . . Slashing Weapon 1 | . . . . . . . . 1 . . . . . Piercing Weapon 1 | . . . . . . . . . . . 1 . . Special Melee Weapon 2 | . . . . . . 2 . . . . . . . Unidentified Prototypes 6 | . . 1 2 1 . . . 1 . . . 1 . Corrupted Parts 2 | . . . . . . . . 1 . . . 1 . System Corruption 14 | . . . . . . . . 6 . . . 8 . Parts Lost 69 | . 6 2 2 3 . 8 9 . . 9 12 16 2 Power 12 | . . 1 . . . 1 2 . . 2 2 4 . Propulsion 26 | . 3 1 2 1 . 4 4 . . . 6 4 1 Utility 15 | . 1 . . 1 . . 1 . . 3 3 6 . Weapon 16 | . 2 . . 1 . 3 2 . . 4 1 2 1 Highest Loss Streak 8 | . 6 1 1 2 . 6 8 . . 8 7 6 2 To Critical Strikes . | . . . . . . . . . . . . . . Average Backups 13 | 3 3 5 14 14 15 15 18 4 5 5 11 17 2 Power . | . 1 1 1 1 1 . 1 . . . . . . Propulsion . | 1 1 . . . . . . . . 1 1 . . Utility 5 | . . 2 4 6 6 7 8 1 1 1 6 6 1 Weapon 4 | . . . 5 5 6 5 4 1 1 . 2 7 . Tool/Special . | . . . . . . . . . . . . . . Unused Backups 22 | . . . . 3 . . 10 . . . . 9 . Power 1 | . . . . . . . 1 . . . . . . Propulsion 1 | . . . . . . . . . . . . 1 . Utility 11 | . . . . 1 . . 6 . . . . 4 . Weapon 8 | . . . . 2 . . 2 . . . . 4 . Tool/Special 1 | . . . . . . . 1 . . . . . . Average Slot Usage (%) 72 | . 90 71 84 78 90 69 62 80 80 67 74 58 21 Engine 7 | . 14 7 11 11 11 7 4 . . . 6 1 . Treads 16 | . 21 13 28 23 34 16 2 . . 8 20 12 3 Leg 1 | . . . . . . 8 . . . . . . . Wheel 1 | . 3 9 1 . . . 2 . . . . . . Hover 1 | . . . . . . . 3 20 20 10 . . . Device 4 | . 10 . . . . . 6 13 13 8 6 13 . Storage 10 | . 14 11 11 11 11 7 12 6 6 6 8 7 . Processor 1 | . . . . . . 3 . . . . 3 1 5 Hackware 2 | . . . . . . 1 6 6 6 8 6 1 5 Protection 6 | . . 10 10 10 11 7 7 6 . . 3 . . Energy Gun 2 | . 2 2 . . . . 1 6 6 4 9 . . Energy Cannon 2 | . . . . 8 22 6 . . . . . . . Ballistic Gun 6 | . 23 17 21 12 . . 2 6 6 3 . 4 . Ballistic Cannon 1 | . . . . . . 3 1 . . . . 4 . Launcher 1 | . . . . 1 . . 3 . . . . . . Peak Build Rating 93 | 7 7 14 20 22 26 44 73 70 64 69 93 93 28 Average Rating 35 | 5 6 11 14 19 24 29 42 62 64 50 64 73 23 On Entrance 29 | . 7 4 14 17 22 26 33 62 70 64 26 60 11 Naked Turns . | . . . . . . . . . . . . . . Heaviest Build 98 | 14 14 36 36 41 41 81 93 36 32 64 72 98 7 Greatest Support 150 | 40 40 40 86 66 92 92 33 33 33 81 81 150 30 Greatest Overweight (x) 28 | . 3 2 . . . 3 28 1 . 1 . 1 . Average Overweight (x) . | . . . . . . . 6 . . . . . . Largest Inventory Capacity 20 | 8 8 15 15 15 15 20 20 5 5 20 20 20 5 Average Capacity 16 | 7 8 10 15 15 15 17 19 5 5 10 20 19 5 Most Carried 20 | 6 4 11 15 15 15 19 20 5 5 8 19 20 4 Average Carried 13 | 3 3 5 14 14 15 15 18 4 4 5 12 17 2 Final Capacity 20 | 8 8 15 15 15 15 20 5 5 5 20 20 5 5 Final Carried 19 | 4 1 11 15 15 15 18 5 5 5 8 19 5 2 Class Distribution -------------------- 73% | Mutant 9% | Scavenger-Mutant 5% | Bothacker-Tank 4% | Bothacker-Mutant 3% | Scavenger-Tank 3% | Tank Dominant Class ---------------- Mutant | -10/Materials Mutant | -9/Materials Scavenger-Mutant | -9/Storage Mutant | -9/Garrison Mutant | -9/Recycling Mutant | -7/Factory Mutant | -6/Factory Mutant | -6/Waste Mutant | -6/Factory Mutant | -6/DSF Mutant | -5/Factory Mutant | -4/Factory Mutant | -4/Garrison Resources | -11 -10 -9 -9 -9 -9 -7 -6 -6 -6 -6 -5 -4 -4 ----------- Run | Yrd Mat Mat Sto Gar Rec Fac Fac Was Fac DSF Fac Fac Gar Matter Collected 3619 | 239 210 430 305 321 91 338 480 . . 14 689 502 . Remotely . | . . . . . . . . . . . . . . Salvage Created 4363 | 26 384 412 635 457 . 541 570 . . 49 469 820 . Parts 218 | 4 19 22 39 19 . 27 32 . . 5 13 38 . Haulers Intercepted 4 | . . . 1 . . . . . . . 1 2 . Recyclers Shooed 2 | . . 1 1 . . . . . . . . . . Parts Field Recycled . | . . . . . . . . . . . . . . Retrieved Matter . | . . . . . . . . . . . . . . Parts Self-Destructed . | . . . . . . . . . . . . . . Prevented . | . . . . . . . . . . . . . . Kills | -11 -10 -9 -9 -9 -9 -7 -6 -6 -6 -6 -5 -4 -4 ------- Run | Yrd Mat Mat Sto Gar Rec Fac Fac Was Fac DSF Fac Fac Gar Combat Hostiles Destroyed 93 | . 11 8 9 10 . 12 20 . . 1 8 14 . Melee 1 | . . . . . . . . . . . . 1 . Guns 45 | . 11 8 9 3 . . 6 . . 1 2 5 . Cannons 24 | . . . . 5 . 8 7 . . . . 4 . AOE 17 | . . . . 1 . 4 6 . . . 3 3 . Classes Destroyed 14 | 1 3 3 2 . . 3 . . . 1 1 . . Worker 4 | . . 1 1 . . . . . . . 1 1 . Builder 3 | . . . . . . 1 1 . . . . 1 . Tunneler 4 | 2 . . . . . 1 . . . . 1 . . Hauler 4 | . . . 1 . . . . . . . 1 2 . Recycler 1 | . . . 1 . . . . . . . . . . Operator 3 | . . . . . . 2 1 . . . . . . Watcher 4 | . 1 . 2 . . . . . . . 1 . . Swarmer 16 | . 3 . . . . . 8 . . . . 5 . Grunt 54 | . 8 3 4 9 . 10 9 . . . 4 7 . Duelist 1 | . . 1 . . . . . . . . . . . Sentry 13 | . . 4 5 1 . 1 1 . . . . 1 . Specialist 1 | . . . . . . . . . . 1 . . . Hunter 2 | . . . . . . . . . . . 1 1 . Programmer 6 | . . . . . . 1 2 . . . 3 . . Best Kill Streak 8 | 1 8 3 4 4 . 4 6 . . 1 4 5 . Combat Bots Only 8 | . 8 3 2 4 . 4 5 . . 1 2 5 . Max Kills in Single Turn 3 | 1 1 1 1 1 . 2 3 . . 1 2 3 . Gunslinging . | . . . . . . . . . . . . . . Exploded 3 | . . . . 1 . 2 1 . . . 1 3 . Melee 1 | . . . . . . . . . . . . 1 . Uniques/NPCs Destroyed . | . . . . . . . . . . . . . . Combat | -11 -10 -9 -9 -9 -9 -7 -6 -6 -6 -6 -5 -4 -4 -------- Run | Yrd Mat Mat Sto Gar Rec Fac Fac Was Fac DSF Fac Fac Gar Hostile Shots Fired 1167 | . 96 52 69 59 . 122 185 . . 109 157 260 58 Missed 329 | . 23 9 18 18 . 31 46 . . 36 42 86 20 Hits 838 | . 73 43 51 41 . 91 139 . . 73 115 174 38 Melee 3 | . . 3 . . . . . . . . . . . Projectile 835 | . 73 40 51 41 . 91 139 . . 73 115 174 38 Critical Strikes 43 | . 1 . 2 1 . 5 6 . . 5 10 11 2 Damage Taken 14099 | . 912 629 703 521 . 1316 1493 . . 1629 3005 3177 714 Core 2233 | . 198 80 74 66 . 58 183 . . 222 201 702 449 Absorbed by Shields 1276 | . . . . . . . 911 . . 198 120 47 . Ignored by Resistances 154 | . . . . . . . . . . . . 154 . Regen/Repaired (Parts) 803 | . . . . 15 . 158 348 19 . . 263 . . Core Remaining (%) 64 | 100 20 . . . 45 91 . . . 52 79 . . Volleys Fired 411 | 5 59 30 47 37 1 46 59 . . 3 60 64 . Largest 3 | 2 2 2 2 2 1 2 3 . . 2 3 3 . Hottest 155 | 40 60 46 56 79 60 116 154 . . 94 155 117 . Shots Fired 681 | 10 95 60 89 67 1 64 97 . . 5 99 94 . Gun 461 | 10 95 60 84 45 . 2 39 . . 5 80 41 . Cannon 179 | . . . 5 17 1 60 46 . . . 5 45 . Launcher 23 | . . . . 5 . 2 12 . . . 1 3 . Special 18 | . . . . . . . . . . . 13 5 . Kinetic 456 | 10 75 60 84 45 . 29 61 . . 2 5 85 . Thermal 131 | . 20 . . 1 1 7 24 . . 3 75 . . Explosive 19 | . . . . 5 . 2 12 . . . . . . Electromagnetic 57 | . . . 5 16 . 26 . . . . 6 4 . Robot Hit Streak 33 | 4 26 33 11 10 11 10 8 . . 4 10 14 . Robot Miss Streak 7 | 1 3 2 7 5 . 5 5 . . 1 5 3 . Penetration Max 1 | . . . . . . 1 . . . . . 1 . Secondary Targets 2 | . 2 . . . . . . . . . . . . Max Gunslinging Chain 1 | . 1 . . . . . . . . . . . . Shots Hit Robots 457 | 7 69 50 57 38 1 43 55 . . 5 64 64 4 Core Hits 207 | 3 26 18 21 15 . 26 40 . . 2 24 31 1 Critical Kills 1 | . . . . . . . 1 . . . . . . Critical Parts Destroyed 3 | . 2 . 1 . . . . . . . . . . Critical Strikes 17 | . 2 . 1 2 . 4 5 . . . . 3 . Burn 1 | . . . . . . . 1 . . . . . . Meltdown 1 | . . . . . . . 1 . . . . . . Destroy 3 | . 2 . 1 . . . . . . . . . . Blast 10 | . . . . . . 4 3 . . . . 3 . Corrupt 2 | . . . . 2 . . . . . . . . . Melee Attacks 28 | . . . . . . 1 . . . . 9 14 4 Impact . | . . . . . . . . . . . . . . Slashing . | . . . . . . . . . . . . . . Piercing 27 | . . . . . . . . . . . 9 14 4 Sneak Attacks 2 | . . . . . . . . . . . . 2 . Combat Hostiles . | . . . . . . . . . . . . . . Follow-up Attacks . | . . . . . . . . . . . . . . Damage Inflicted 12078 | 75 750 747 912 885 24 1534 2545 . . 92 1827 2538 149 Guns 4902 | 75 750 747 911 389 . 15 451 . . 92 798 674 . Cannons 3221 | . . . . 339 24 1043 796 . . . 166 853 . Explosions 3331 | . . . . 157 . 476 1298 . . . 863 537 . Melee 619 | . . . . . . . . . . . . 470 149 Ramming 5 | . . . 1 . . . . . . . . 4 . Kinetic 5768 | 75 531 747 911 389 . 502 893 . . 32 166 1522 . Thermal 2593 | . 219 . . 157 24 194 582 . . 60 1072 285 . Explosive 1972 | . . . . . . 396 1070 . . . 506 . . Electromagnetic 1121 | . . . . 339 . 442 . . . . 83 257 . Impact . | . . . . . . . . . . . . . . Slashing . | . . . . . . . . . . . . . . Piercing 619 | . . . . . . . . . . . . 470 149 Highest Corruption 17 | . . . . . . 2 2 14 14 17 4 13 13 Average Corruption 5 | . . . . . . 2 1 6 14 14 3 8 13 Corruption Purged . | . . . . . . . . . . . . . . Corruption Blocked . | . . . . . . . . . . . . . . Effects 40 | . . . . . . . 1 3 . 7 18 8 3 Message Errors 10 | . . . . . . . . . . 1 5 3 1 Matter Fused 13 | . . . . . . . . 1 . 3 6 2 1 Heat Flow Errors 3 | . . . . . . . 1 1 . . 1 . . Energy Discharges 5 | . . . . . . . . . . 1 2 1 1 Data Loss (minor) 6 | . . . . . . . . 1 . 2 2 1 . Data Loss (major) 1 | . . . . . . . . . . . 1 . . Misfires 1 | . . . . . . . . . . . 1 . . Misdirections 1 | . . . . . . . . . . . . 1 . Overload Shots . | . . . . . . . . . . . . . . Overflow Damage 312 | . . . . . . 24 155 . . . 63 70 . Projectiles 71 | . . . . . . 24 25 . . . 9 13 . Explosions 227 | . . . . . . . 130 . . . 54 43 . Melee 14 | . . . . . . . . . . . . 14 . Knockbacks 15 | . . . . . . 4 3 . . . . 8 . Impact . | . . . . . . . . . . . . . . Kinetic 11 | . . . . . . 2 2 . . . . 7 . Secondary 4 | . . . . . . 2 1 . . . . 1 . Self-Inflicted Damage 378 | . . . . 25 . . 105 . . . 110 138 . Shots 10 | . . . . 1 . . 4 . . . 1 4 . Rammed 2 | . . . 1 . . . . . . . . 1 . Targets Rammed 2 | . . . 1 . . . . . . . . 1 . Kicked . | . . . . . . . . . . . . . . Crushed . | . . . . . . . . . . . . . . Highest Temperature 370 | . 90 44 90 267 26 370 346 254 . . 248 . 1 Average Temperature 87 | . 33 22 19 92 17 112 118 254 . . 55 . 1 Received Heat Transfer 4004 | . 444 207 276 300 . 738 558 . . 234 703 427 117 Effects 10 | . . . . . . 3 7 . . . . . . Energy Bleed 3 | . . . . . . 1 2 . . . . . . Interference 6 | . . . . . . 1 5 . . . . . . Short Circuit 1 | . . . . . . 1 . . . . . . . Siege Activations . | . . . . . . . . . . . . . . Martial Activations . | . . . . . . . . . . . . . . Shielding Activations . | . . . . . . . . . . . . . . Robots Disrupted . | . . . . . . . . . . . . . . Combat Hostiles . | . . . . . . . . . . . . . . Robots Corrupted 2 | . . . . 1 . . . . . . . 1 . Combat Hostiles 2 | . . . . 1 . . . . . . . 1 . Parts Fried 2 | . . . . . . 1 . . . . . 1 . Impact Corruptions . | . . . . . . . . . . . . . . Robots Melted 4 | . . . . . . . 1 . . . 3 . . Combat Hostiles 4 | . . . . . . . 1 . . . 3 . . Parts Melted 12 | . . . . . . . 2 . . . 10 . . Heat Transferred 4360 | . 500 . . 200 37 285 853 . . 111 2174 200 . Parts Sabotaged . | . . . . . . . . . . . . . . Parts Stolen . | . . . . . . . . . . . . . . Parts Stripped . | . . . . . . . . . . . . . . Power Chain Reactions 2 | . . . . 1 . 1 . . . . . . . Alert | -11 -10 -9 -9 -9 -9 -7 -6 -6 -6 -6 -5 -4 -4 ------- Run | Yrd Mat Mat Sto Gar Rec Fac Fac Was Fac DSF Fac Fac Gar Maximum Alert Level 2 | . . . . 1 . . 1 . . . 2 2 1 Low Security (%) 76 | 100 100 100 100 47 100 100 79 100 100 100 36 37 . Level 1 18 | . . . . 52 . . 20 . . . 41 41 100 Level 2 4 | . . . . . . . . . . . 21 20 . Level 3 . | . . . . . . . . . . . . . . Level 4 . | . . . . . . . . . . . . . . Level 5 . | . . . . . . . . . . . . . . High Security . | . . . . . . . . . . . . . . Max Security . | . . . . . . . . . . . . . . Peak Influence 497 | 5 151 87 50 334 150 83 299 59 27 43 447 497 287 Initial 277 | . . 53 22 28 150 . 34 59 27 18 7 142 277 Average 114 | . 40 52 12 210 63 20 135 49 27 23 233 255 270 Influence Increases 3951 | 10 312 234 294 336 12 412 759 . . 50 813 689 30 Destroy 0b10 Robot/C 2000 | . 220 160 180 200 . 260 400 . . 20 260 300 . Destroy 0b10 Robot/NC 115 | 10 5 5 25 . . 20 10 . . . 20 20 . Destroy Leader 466 | . 62 60 66 20 . 60 90 . . . 54 54 . Allied During Kill 13 | . . . . . . 1 . . . . 10 2 . Successful Hack 112 | . 10 9 7 14 12 . 27 . . . 33 . . Disable Machine 525 | . 15 . 15 . . 60 30 . . . 285 120 . Anti-Garrison Action 50 | . . . . 50 . . . . . . . . . Destroy Structure 400 | . . . 1 52 . 11 82 . . . 136 118 . Lose Combat Pursuer 270 | . . . . . . . 120 . . 30 15 75 30 Influence Decreases 3664 | 10 185 308 303 46 346 342 659 131 12 62 536 584 140 Entered New Map 751 | . . 74 31 16 184 . 36 111 12 9 8 150 120 Time Decay 2186 | 10 125 214 262 . 162 273 533 20 . . 333 254 . Lost Part 608 | . 60 20 10 30 . 50 90 . . 53 115 160 20 Lost Ally 119 | . . . . . . 19 . . . . 80 20 . Squads Dispatched 29 | . 3 1 1 . . 3 8 . . 2 6 5 . Investigation 5 | . 1 . . . . 1 3 . . . . . . Extermination 6 | . . . . . . 1 3 . . . 1 1 . Reinforcement 17 | . 2 1 1 . . 1 2 . . 2 5 3 . Assault . | . . . . . . . . . . . . . . Garrison 1 | . . . . . . . . . . . . 1 . Intercept . | . . . . . . . . . . . . . . Searches Triggered . | . . . . . . . . . . . . . . Construction Impeded 2 | . . . . . . . . . . . . 2 . Haulers Reinforced 4 | . . . . . . . . . . . 3 1 . Active Scanning Responses . | . . . . . . . . . . . . . . Cargo Convoy Interrupts 1 | . . . . . . . . . . . 1 . . Stealth | -11 -10 -9 -9 -9 -9 -7 -6 -6 -6 -6 -5 -4 -4 --------- Run | Yrd Mat Mat Sto Gar Rec Fac Fac Was Fac DSF Fac Fac Gar Distress Signals 5 | . 1 1 . . . . . . . . 1 2 . Communications Jammed . | . . . . . . . . . . . . . . Distress Signals . | . . . . . . . . . . . . . . Times Spotted 182 | . 18 11 12 10 . 14 30 3 . 9 28 32 15 Peak Tracking Total 16 | . 5 3 4 3 . 4 7 3 . 7 6 9 16 Tactical Retreats 13 | . . . . . . . 6 . . 2 1 3 1 Traps | -11 -10 -9 -9 -9 -9 -7 -6 -6 -6 -6 -5 -4 -4 ------- Run | Yrd Mat Mat Sto Gar Rec Fac Fac Was Fac DSF Fac Fac Gar Traps Triggered 13 | . 2 . 1 . . 5 2 . . 2 . 1 . Indirectly . | . . . . . . . . . . . . . . Trap Hack Attempts . | . . . . . . . . . . . . . . Triggered . | . . . . . . . . . . . . . . Disarmed . | . . . . . . . . . . . . . . Reprogrammed . | . . . . . . . . . . . . . . Reused . | . . . . . . . . . . . . . . Traps Extracted . | . . . . . . . . . . . . . . Installed . | . . . . . . . . . . . . . . Triggered . | . . . . . . . . . . . . . . Machines | -11 -10 -9 -9 -9 -9 -7 -6 -6 -6 -6 -5 -4 -4 ---------- Run | Yrd Mat Mat Sto Gar Rec Fac Fac Was Fac DSF Fac Fac Gar Machines Disabled 36 | . 1 . 1 1 . 4 2 . . . 19 8 . Max in Single Turn 8 | . 1 . 1 1 . 1 1 . . . 8 5 . Garrison Relay 1 | . . . . 1 . . . . . . . . . Machines Repaired . | . . . . . . . . . . . . . . Machines Dismantled 1 | . . . 1 . . . . . . . . . . Machines Sabotaged . | . . . . . . . . . . . . . . Overloaded Fab Kills . | . . . . . . . . . . . . . . Hacking | -11 -10 -9 -9 -9 -9 -7 -6 -6 -6 -6 -5 -4 -4 --------- Run | Yrd Mat Mat Sto Gar Rec Fac Fac Was Fac DSF Fac Fac Gar Machines Accessed 31 | . 3 3 5 2 4 2 4 . 1 . 6 1 . Terminals 21 | . 3 3 4 2 2 2 2 . 1 . 2 . . Fabricators 3 | . . . . . . . 1 . . . 2 . . Repair Stations 2 | . . . . . . . 1 . . . 1 . . Recycling Units 3 | . . . . . 2 . . . . . 1 . . Scanalyzers . | . . . . . . . . . . . . . . Garrison Access 2 | . . . 1 . . . . . . . . 1 . Total Hacks 60 | . 6 7 7 6 9 4 8 . 1 . 11 1 . Successful 26 | . 3 4 4 1 5 . 1 . 1 . 6 1 . Failed 34 | . 3 3 3 5 4 4 7 . . . 5 . . Catastrophic 7 | . . 1 . 1 . 3 2 . . . . . . Database Lockouts . | . . . . . . . . . . . . . . Manual 23 | . 5 7 . . 3 4 . . . . 4 . . Terminals 49 | . 6 7 6 6 7 4 5 . 1 . 7 . . Fabricators 4 | . . . . . . . 2 . . . 2 . . Repair Stations 2 | . . . . . . . 1 . . . 1 . . Recycling Units 3 | . . . . . 2 . . . . . 1 . . Scanalyzers . | . . . . . . . . . . . . . . Garrison Access 2 | . . . 1 . . . . . . . . 1 . Terminal Hacks 11 | . 1 2 3 1 2 . . . 1 . 1 . . Record 1 | . . . . . . . . . . . 1 . . Prototype ID Bank 1 | . . . . . 1 . . . . . . . . Open Door 3 | . . . 3 . . . . . . . . . . Open DSF 1 | . . . . . . . . . 1 . . . . Branch Access Points 2 | . . 1 . . 1 . . . . . . . . Registered Components 1 | . 1 . . . . . . . . . . . . Zone Layout 1 | . . 1 . . . . . . . . . . . Garrison Registry 1 | . . . . 1 . . . . . . . . . Fabricator Hacks 2 | . . . . . . . . . . . 2 . . Network Status 1 | . . . . . . . . . . . 1 . . Build 1 | . . . . . . . . . . . 1 . . Repair Station Hacks 2 | . . . . . . . 1 . . . 1 . . Refit 2 | . . . . . . . 1 . . . 1 . . Recycling Unit Hacks 3 | . . . . . 2 . . . . . 1 . . Report Inventory 3 | . . . . . 2 . . . . . 1 . . Scanalyzer . | . . . . . . . . . . . . . . Garrison Access Hacks 2 | . . . 1 . . . . . . . . 1 . Unlock Access 2 | . . . 1 . . . . . . . . 1 . Unauthorized Hacks 6 | . 2 2 . . 1 . . . . . 1 . . Terminals 6 | . 2 2 . . 1 . . . . . 1 . . Botnet 6 | . 2 2 . . 1 . . . . . 1 . . Fabricators . | . . . . . . . . . . . . . . Repair Stations . | . . . . . . . . . . . . . . Recycling Units . | . . . . . . . . . . . . . . Scanalyzers . | . . . . . . . . . . . . . . Garrison Access . | . . . . . . . . . . . . . . Data Cores Recovered . | . . . . . . . . . . . . . . Used . | . . . . . . . . . . . . . . Hacking Detections 25 | . 3 2 3 2 2 2 4 . . . 6 1 . Full Trace Events 2 | . . . . . . . 2 . . . . . . Feedback Events . | . . . . . . . . . . . . . . Feedback Blocked . | . . . . . . . . . . . . . . Robot Schematics Acquired . | . . . . . . . . . . . . . . Robots Built . | . . . . . . . . . . . . . . Authchips . | . . . . . . . . . . . . . . Time . | . . . . . . . . . . . . . . Total Robot Build Rating . | . . . . . . . . . . . . . . Part Schematics Acquired . | . . . . . . . . . . . . . . Parts Built 1 | . . . . . . . . . . . 1 . . Authchips . | . . . . . . . . . . . . . . Time 139 | . . . . . . . . . . . 139 . . Total Part Build Rating 9 | . . . . . . . . . . . 9 . . Parts Repaired . | . . . . . . . . . . . . . . Time . | . . . . . . . . . . . . . . Parts Recycled . | . . . . . . . . . . . . . . Recycled Matter . | . . . . . . . . . . . . . . Retrieved Matter . | . . . . . . . . . . . . . . Retrieved Components . | . . . . . . . . . . . . . . Parts Scanalyzed . | . . . . . . . . . . . . . . Part Schematics Acquired . | . . . . . . . . . . . . . . Parts Damaged . | . . . . . . . . . . . . . . Bothacking | -11 -10 -9 -9 -9 -9 -7 -6 -6 -6 -6 -5 -4 -4 ------------ Run | Yrd Mat Mat Sto Gar Rec Fac Fac Was Fac DSF Fac Fac Gar Used RIF Installer 1 | . . . . 1 . . . . . . . . . Robots Hacked 9 | . . . . . . 1 . . . . 5 3 . Non-combat . | . . . . . . . . . . . . . . Combat 9 | . . . . . . 1 . . . . 5 3 . Robot Hacks Applied 11 | . . . . . . 1 . . . . 7 3 . find_shortcuts 1 | . . . . . . . . . . . . 1 . find_garrison 2 | . . . . . . . . . . . 1 1 . amplify_resonance 3 | . . . . . . . . . . . 3 . . streamctrl_high 1 | . . . . . . 1 . . . . . . . formatsys_high 4 | . . . . . . . . . . . 3 1 . Relay Couplers Released 9 | . . . . 5 . . . . . . 4 . . Machine Destruction 5 | . . . . 5 . . . . . . . . . Programmers 4 | . . . . . . . . . . . 4 . . Attached 8 | . . . . . . 1 . . . 3 2 2 . Fabnet Peak Effective % . | . . . . . . . . . . . . . . Robots Rewired 1 | . . . . . . . . . . . 1 . . Allies Hacked . | . . . . . . . . . . . . . . Hacks Repelled . | . . . . . . . . . . . . . . Allies | -11 -10 -9 -9 -9 -9 -7 -6 -6 -6 -6 -5 -4 -4 -------- Run | Yrd Mat Mat Sto Gar Rec Fac Fac Was Fac DSF Fac Fac Gar Total Allies 6 | . . . . . . 1 . . . . 4 1 . Largest Group 2 | . . . . . . 1 . . . . 2 1 . Highest-Rated Group 73 | . . . . . . 16 . . . . 73 56 . Highest-Rated Ally 56 | . . . . . . 16 . . . . 49 56 . Total Orders 1 | . . . 1 . . . . . . . . . . EXPLORE 1 | . . . 1 . . . . . . . . . . Ally Attacks 30 | . . . . . . 4 . . . . 21 5 . Total Damage 739 | . . . . . . 48 . . . . 457 234 . Kills 7 | . . . . . . 1 . . . . 5 1 . Allies Corrupted . | . . . . . . . . . . . . . . Allies Melted . | . . . . . . . . . . . . . . Intel | -11 -10 -9 -9 -9 -9 -7 -6 -6 -6 -6 -5 -4 -4 ------- Run | Yrd Mat Mat Sto Gar Rec Fac Fac Was Fac DSF Fac Fac Gar Active Infowar (turns) 816 | 46 377 . . . . . . . . . . 393 . Seismic 816 | 46 377 . . . . . . . . . . 393 . Robot Analysis Total . | . . . . . . . . . . . . . . Derelict Logs Recovered . | . . . . . . . . . . . . . . Drone Launches 2 | . . . 2 . . . . . . . . . . Drone Recoveries 2 | . . . 2 . . . . . . . . . . Exploration | -11 -10 -9 -9 -9 -9 -7 -6 -6 -6 -6 -5 -4 -4 ------------- Run | Yrd Mat Mat Sto Gar Rec Fac Fac Was Fac DSF Fac Fac Gar Turns Passed 7650 | 164 503 453 904 524 420 953 1747 57 12 160 1138 540 75 Spaces Moved 3273 | 92 236 237 390 251 249 446 446 81 15 119 449 186 76 Core 182 | 13 2 . . . . . 92 . . . . 24 51 Treads 2306 | 79 190 115 390 251 249 356 . . . 40 449 162 25 Legs 77 | . . . . . . 75 2 . . . . . . Wheels 380 | . 44 122 . . . 15 199 . . . . . . Hover 328 | . . . . . . . 153 81 15 79 . . . Flight . | . . . . . . . . . . . . . . Fastest Speed 50 | 50 100 100 160 160 160 125 65 65 65 65 160 50 50 Average Speed 176 | 144 149 138 160 160 160 164 341 67 65 100 166 157 81 Slowest Speed 1450 | 160 200 240 160 160 160 320 1450 138 65 250 170 245 145 Overloaded Moves . | . . . . . . . . . . . . . . Propulsion Burnouts . | . . . . . . . . . . . . . . Robots Hopped . | . . . . . . . . . . . . . . Potential Cave-ins 6 | . . . . 6 . . . . . . . . . Cave-ins Triggered . | . . . . . . . . . . . . . . Exploration Rate (%) 34 | 5 46 25 61 46 75 12 11 74 1 77 11 9 23 Regions Visited 13 Branch Regions 2 Pre-discovered Areas . | . . . . . . . . . . . . . . Known Exits Taken 5 | . . 1 1 . . . . . 1 . 1 1 . Unknown Exits Taken 4 | 1 1 . . . 1 1 . . . . . . . Scrap Searched . | . . . . . . . . . . . . . . Spaces Dug 10 | . . . . . . . . . . . 6 4 . Terrain Destroyed 354 | . . . . 97 . 12 98 . . . 78 69 . Melee 7 | . . . . . . . . . . . 6 1 . Projectile 48 | . . . . . . 6 9 . . . 1 32 . AOE 299 | . . . . 97 . 6 89 . . . 71 36 . Terrain Rammed . | . . . . . . . . . . . . . . Walls Destroyed . | . . . . . . . . . . . . . . Machines Disabled . | . . . . . . . . . . . . . . Actions | -11 -10 -9 -9 -9 -9 -7 -6 -6 -6 -6 -5 -4 -4 --------- Run | Yrd Mat Mat Sto Gar Rec Fac Fac Was Fac DSF Fac Fac Gar Total 4440 | 114 298 303 562 305 269 597 591 83 17 154 737 327 83 Wait 365 | . 1 . 81 . 18 56 31 . . . 168 10 . Move 3263 | 91 235 236 390 250 248 445 446 80 14 118 448 186 76 Hop . | . . . . . . . . . . . . . . Pick Up 121 | 11 . 21 10 6 . 15 13 1 1 6 23 14 . Fast Attach 25 | . . . 4 . 2 9 1 1 . 6 . 2 . Attach 85 | 7 3 7 6 2 . 14 10 . . 3 13 17 3 Detach 13 | . . . 1 . . 2 3 . . . 1 6 . Swap 36 | . . 4 8 6 . 4 6 . . . 4 4 . Drop 55 | . . 5 6 4 . 5 22 1 2 5 . 5 . Fire 411 | 5 59 30 47 37 1 46 59 . . 3 60 64 . Melee 28 | . . . . . . 1 . . . . 9 14 4 Ram 1 | . . . . . . . . . . . . 1 . Kick . | . . . . . . . . . . . . . . Crush 2 | . . . 1 . . . . . . . . 1 . Escape Stasis 13 | . . . . . . . . . . 13 . . . Rewire 14 | . . . . . . . . . . . 11 3 . Trap . | . . . . . . . . . . . . . . Miscellaneous 8 | . . . 8 . . . . . . . . . . Route ------- -11/Scrapyard -10/Materials -9/Materials (discovered 5 exits: [*Mat] / Min x2 / *Sto x2) -9/Storage (discovered 2 exits: [*Mat] / Gar) -9/Garrison (discovered 3 exits: *Rec x3) -9/Recycling -7/Factory (discovered 3 exits: *Fac x2 / [*Low]) -6/Factory -6/Waste -6/Factory -6/DSF -5/Factory -4/Factory (discovered 2 exits: [*Upp] / Gar) -4/Garrison History --------- Turn | Location | Event 5 | -11/Scrapyard | Discovered new exit (range 14) 165 | -11/Scrapyard | Entered Materials 318 | -10/Materials | Build established: Mutant 549 | -10/Materials | Core integrity fell below 50% 594 | -10/Materials | Destroyed 8 combat bots 616 | -10/Materials | Discovered new exit (range 12) 633 | -10/Materials | Lost 6 parts (3n1u2w) 668 | -10/Materials | Entered another Materials area 668 | -9/Materials | Evolved 2 slots: Propulsion x2 981 | -9/Materials | Discovered new exit (range 16) 1000 | -9/Materials | Identified exit to Mines 1000 | -9/Materials | Identified exit to Storage 1116 | -9/Materials | Discovered new exit (range 10) 1121 | -9/Materials | Entered Storage 1296 | -9/Storage | Found Prototype Protection 1297 | -9/Storage | Identified Lgt. Regenerative Plating 1512 | -9/Storage | Discovered new exit (range 16) 1593 | -9/Storage | Build established: Scavenger-Mutant 2025 | -9/Storage | Identified exit to Garrison 2025 | -9/Storage | Entered Garrison 2035 | -9/Garrison | Discovered new exit (range 51) 2035 | -9/Garrison | Discovered new exit (range 75) 2035 | -9/Garrison | Discovered new exit (range 62) 2073 | -9/Garrison | Triggered checkpoint 2133 | -9/Garrison | Garrison Relay disabled 2193 | -9/Garrison | Build established: Mutant 2255 | -9/Garrison | Triggered checkpoint 2271 | -9/Garrison | Core integrity fell below 50% 2357 | -9/Garrison | Triggered checkpoint 2373 | -9/Garrison | Triggered checkpoint 2385 | -9/Garrison | Triggered checkpoint 2471 | -9/Garrison | Installed Relay Interface Framework 2549 | -9/Garrison | Entered Recycling 2897 | -9/Recycling | Discovered new exit (range 16) 2969 | -9/Recycling | Entered Factory 2969 | -7/Factory | Evolved 4 slots: Power x1, Utility x2, Weapon x1 3044 | -7/Factory | Discovered new exit (range 14) 3286 | -7/Factory | Lost 6 parts (1p2n3w) 3311 | -7/Factory | Discovered new exit (range 15) 3550 | -7/Factory | Discovered new exit (range 10) 3922 | -7/Factory | Entered another Factory area 3922 | -6/Factory | Evolved 2 slots: Utility x2 4355 | -6/Factory | Lost 8 parts (1p4n1u2w) 5669 | -6/Factory | Sucked down chute 5669 | -6/Factory | Entered Waste 5676 | -6/Waste | Spotted C-40 Crusher 5684 | -6/Waste | EMP discharged 5686 | -6/Waste | Spotted C-40 Crusher 5686 | -6/Waste | Spotted C-40 Crusher 5689 | -6/Waste | Spotted C-40 Crusher 5703 | -6/Waste | Spotted C-40 Crusher 5710 | -6/Waste | Discovered new exit (range 15) 5711 | -6/Waste | Spotted C-40 Crusher 5723 | -6/Waste | System corruption reached 10% 5726 | -6/Waste | Entered Factory 5738 | -6/Factory | Identified exit to DSF 5738 | -6/Factory | Entered DSF 5782 | -6/DSF | Additional patrols routed to DSF 5785 | -6/DSF | Discovered new exit (range 15) 5898 | -6/DSF | Entered Factory 5898 | -5/Factory | Evolved 2 slots: Propulsion x1, Utility x1 5903 | -5/Factory | Lost 8 parts (2p3u3w) 6680 | -5/Factory | Fabricated Adv. Heavy Siege Treads? 6697 | -5/Factory | Cargo convoy interrupted 6723 | -5/Factory | Discovered new exit (range 5) 6730 | -5/Factory | Identified exit to Factory 6735 | -5/Factory | Build established: Bothacker-Tank 7036 | -5/Factory | Entered another Factory area 7036 | -4/Factory | Evolved 2 slots: Power x1, Propulsion x1 7067 | -4/Factory | Lost 7 parts (1p3n2u1w) 7163 | -4/Factory | Build established: Bothacker-Mutant 7271 | -4/Factory | Lost 3 parts (1p1n1u) 7427 | -4/Factory | Discovered new exit (range 4) 7479 | -4/Factory | Garrison activated, responded to threat 7497 | -4/Factory | Lost 3 parts (1p1n1w) 7546 | -4/Factory | System corruption reached 10% 7565 | -4/Factory | Spotted B-86 Titan 7574 | -4/Factory | Core integrity fell below 50% 7576 | -4/Factory | Identified exit to Garrison 7576 | -4/Factory | Entered Garrison 7591 | -4/Garrison | Lost 6 parts (2n3u1w) 7606 | -4/Garrison | Triggered checkpoint 7648 | -4/Garrison | Spotted B-86 Titan 7650 | -4/Garrison | Core integrity fell below 20% 7651 | -4/Garrison | Destroyed by H-77 Assassin with High-powered Shotgun Last Messages --------------- 07573_ Slug penetrates Subcomponent Replicator. 07576_ Connecting with Garrison Access... >>Unlock Access door unlocked. 07576_ EXIT=UNLOCKED: GARRISON LOCATION=GARRISON GOAL=ESCAPE 07589_ System corrupted: Matter fused (-8). 07606_ Beams of light sweep through the air. An alarm sounds. 07623_ System corrupted: Energy discharge (-38). 07624_ Adv. Medium Treads destroyed. 07624_ Imp. Remote Datajack destroyed. 07648_ C-30 ARC bursts open, deploying its payload. 07648_ H-77 Assassin unfolds itself. 07648_ Slug penetrates Wall. 07648_ Penetrated by Slug. 07650_ FGHYLY=S6STKG3X:QOST2MJER [Achievement: Collector] Map ----- +----------------------------------------------------+ | ?????????????# #???????????????????????????????? | | ?????????????# #???????????????????????????????? | | ?????????????# #???????????????????????????????? | | ?????????????# #???????????????????????????????? | | ?????????????# #???????????????????????????????? | | ?????????????# #???????????????????????????????? | | ?????????????# #???????????????????????????????? | | ?????????????# #???????????????????????????????? | | ?????????????# #???????????????????????????????? | | ?????????????# #???????????????????????????????? | | ?????????????# #???????????????????????????????? | | ?????????????# #???????????????????????????????? | | ?????????????# #???????????????????????????????? | | ?????????????# #???????????????????????????????? | | ?????????????# #???????????????????????????????? | | ?????????????# #???????????????????????????????? | | ?????????????# #############""""## #?????????? | | ?????????????# g #?????????? | | ?????????????# g #?????????? | | ?????????????# g #?????????? | | ?????????????############ ## #??????????????? | | ????????????????????????# h## g ## #?????????? | | ????????????????????????" hBB "?????????? | | ????????????????????????" BB "?????????? | | ????????????????????????" "?????????? | | ????????????????????????"@ "?????????? | | ????????????????????????# ## ## #?????????? | | ????????????????????????# #? #??? ??????????? | | ????????????????????????# ? ?????????????? | | ????????????????????????# ? ???????????? | | ????????????????????????# ? ??????????? | | ????????????????????????# ##""""####???????????? | | ????????????????????????# #????????????????????? | | ????????????????????????# #????????????????????? | | ????????????????????????? #????????????????????? | | ????????????????????????? #????????????????????? | | ????????????????????????? s#????????????????????? | | ????????????????????????? s #????????????????????? | | ????????????????????????? s#????????????????????? | | ?????????????????????????s #????????????????????? | | ????????????????????????? ?????????????????????? | | ?????????????????????????????????????????????????? | | ?????????????????????????????????????????????????? | | ?????????????????????????????????????????????????? | | ?????????????????????????????????????????????????? | | ?????????????????????????????????????????????????? | | ?????????????????????????????????????????????????? | | ?????????????????????????????????????????????????? | | ?????????????????????????????????????????????????? | | ?????????????????????????????????????????????????? | +----------------------------------------------------+ Best States ------------- Heat Dissipation 74 Energy Generation 41 Energy Capacity 805 Matter Stores 300 Matter Capacity 300 Sight Range 16 Terrain Scan Density 10 Armor Coverage 525 Resistance: TH 20 Point Defense Rating 80 Evasion (%) 55 Targeting Accuracy 8 Core Analysis 6 Recoil Reduction 4 Energy Filtering 30 Salvage Targeting 3 Relay Coupler Types 2 Relay Coupler Value 55 Item Schematics ----------------- None Robot Schematics ------------------ None Fabricated ------------ Adv. Heavy Siege Treads | x1 | -5/Factory | Preloaded Repaired ---------- Nothing Alien Tech Used ----------------- None Achievements -------------- Collector Challenges ------------ None Game ------ Seed SpreadPartitionDeconstructor Manual? 0 Play Time 01:03:01 Cumulative 190.1 hours Start 2025.08.23 @ 11:29:42 End 2025.08.23 @ 23:59:16 Sessions 5 Manual Loads 0 Difficulty Rogue Special Mode None Game No. 297 Rogue 297 Adventurer 0 Explorer 0 Win Type - Total 4 Types 3/0/1/0/0/0/0/0/0/0 Lore% 79 Gallery% 75 Achievement% 55 Wizard Run 0 Options --------- Layout 1 ASCII 0 Keyboard 0 Movement Mouse Keybinds 0 Fullscreen 1 Font 32/SmallcapsGlow Map View 50x35 Zoom Use 0% Tactical HUD 1 Map Filters NONE Filters NONE Steam 1 RUN: e405ed36-2c0a-4429-89e2-5add6f63b6b2